[Event "ITT 1st Parada Jamundi 2022"]
[Site "Jamundi Valle"]
[Date "2022.12.09"]
[Round "7.9"]
[White "Arango Arenas, Juan Camilo"]
[Black "Lopez Rayo, Santiago"]
[Result "1/2-1/2"]
[ECO "B76"]
[WhiteElo "2202"]
[BlackElo "2300"]
[Annotator "TA"]
[PlyCount "64"]
[EventDate "2022.12.05"]
[EventType "swiss"]
[EventCountry "COL"]
[SourceTitle "playchess.com"]
[Source "ChessBase"]
[SourceQuality "1"]
[TimeControl "5400+30"]

{[%evp 20,64,58,0,6,0,0,0,2,13,26,26,27,27,27,21,20,20,20,7,0,0,8,0,17,16,12,0,36,38,39,35,43,0,38,0,30,0,37,0,-2,-63,-71,-64,-76,-69,0]} 1. e4 {[%emt 0:04:46]} c5 {[%emt 0:00:06]} 2. Nf3 {[%emt 0:00:05]} d6 {[%emt 0:00:06]} 3. d4 {[%emt 0:00:05]} cxd4 {[%emt 0:00:06]} 4. Nxd4 {[%emt 0:00:02]} Nf6 {[%emt 0:00:11]} 5. Nc3 {[%emt 0:00:04]} g6 {[%emt 0:00:07]} 6. Be3 {[%emt 0:00:30]} Bg7 {[%emt 0:00:07]} 7. f3 {[%emt 0:00:11]} O-O {[%emt 0:00:10]} 8. Qd2 {[%emt 0:00:07]} Nc6 {[%emt 0:00:15]} 9. O-O-O {[%emt 0:00:12]} Bd7 {[%emt 0:01:03]} 10. h4 {[%emt 0:06:46]} h5 {[%emt 0:00:18]} 11. Bh6 {[%emt 0:08:47]} (11. Kb1 $14) 11... Nxd4 $11 {[%emt 0:22:04] B76: Sicilian Dragon: Yugoslav Attack, 9 g4 and 9 0-0-0.} 12. Bxg7 {[%emt 0:00:26]} Kxg7 {[%emt 0:09:57]} 13. Qxd4 {[%emt 0:00:05] [#]} Be6 $146 {[%emt 0:00:14] The position is equal.} ({Predecessor:} 13... Qa5 14. Kb1 Be6 15. g4 hxg4 16. f4 Rac8 17. h5 Rh8 18. f5 gxf5 19. Nd5 Qc5 {0-1 (67) Ohanyan,E (2402)-Dimitrov,A (2269) Chess.com INT 2022}) 14. Nd5 {[%emt 0:26:30]} Bxd5 {[%emt 0:03:21]} (14... Rc8 {is interesting.} 15. Nxf6 exf6 16. a3 Qc7) 15. exd5 {[%emt 0:01:48]} Qc7 {[%emt 0:07:47]} 16. g4 {[%emt 0:07:38]} Rac8 {[%emt 0:01:18][%csl Gc8][%cal Rc7c2] [#]} 17. Rh2 {[%emt 0:00:07] g5 is the strong threat. Active counter play!} hxg4 {[%emt 0:04:10]} 18. fxg4 {[%emt 0:02:43][%cal Og4g5] Threatens to win with g5!} Qc5 {[%emt 0:02:34]} 19. g5 {[%emt 0:01:24]} Qxd4 {[%emt 0:00:12]} 20. Rxd4 {[%emt 0:00:04]} Nd7 {[%emt 0:05:42]} 21. Bh3 {[%emt 0:00:06]} Rc7 {[%emt 0:01:33]} 22. Bxd7 {[%emt 0:00:07]} Rxd7 {[%emt 0:00:04][%mdl 4096] Endgame KRR-KRR} 23. Re2 {[%emt 0:07:00]} Rc8 {[%emt 0:00:47]} 24. Rde4 {[%emt 0:01:48]} Kf8 {[%emt 0:00:06]} 25. Rf4 {[%emt 0:01:37]} Kg7 {[%emt 0:00:22]} 26. Rfe4 {[%emt 0:00:10]} Kf8 {[%emt 0:00:06]} 27. Rf4 {[%emt 0:04:18]} (27. Rf2 $5 {[%cal Re4f4]}) 27... Kg7 {[%emt 0:00:13]} 28. Rfe4 {[%emt 0:27:04]} Kf8 29. h5 gxh5 {[%emt 0:42:01] White must now prevent ...Kg7.} 30. g6 (30. Rh4 $11) 30... fxg6 $15 {[%emt 0:00:30] [#] Strongly threatening ...Kg7.} 31. Re6 {[%emt 0:01:30]} Kg7 {[%emt 0:00:30] And now ...Rf8 would win.} 32. Rg2 {[%emt 0:00:30]} Rf8 {[%emt 0:00:30] Weighted Error Value: White=0.19 (very precise) /Black=0.03 (flawless)} ({Black should play} 32... Rh8 $1 $15 33. Rgxg6+ Kf7) 1/2-1/2

[Event "ITT 1st Parada Jamundi 2022"]
[Site "Jamundi Valle"]
[Date "2022.12.09"]
[Round "7.10"]
[White "Mora Munoz, Alejandro"]
[Black "Londono Lopez, Donaldo"]
[Result "1-0"]
[ECO "B90"]
[WhiteElo "1959"]
[BlackElo "2055"]
[Annotator "TA"]
[PlyCount "121"]
[EventDate "2022.12.05"]
[EventType "swiss"]
[EventCountry "COL"]
[SourceTitle "playchess.com"]
[Source "ChessBase"]
[SourceQuality "1"]
[TimeControl "5400+30"]

{[%evp 18,121,17,30,20,14,18,21,7,14,12,0,17,0,0,0,0,0,52,-20,0,0,49,-24,-37,-20,-23,-52,-27,-148,-129,-164,-153,-206,-218,-191,-135,-189,-191,-176,-185,-154,-22,-20,0,0,0,0,0,-8,-8,-1034,-229,-1116,0,0,77,77,306,181,463,406,375,360,320,287,270,281,426,431,431,412,590,579,568,554,535,514,924,1032,1000,913,12843,1784,1670,1538,29970,29971,29964,29959,5251,5165,29978,29979,29984,29976,29975,29976,29976,29977,29977,29978,29980,6107,29985,29986]} 1. e4 {[%emt 0:02:00]} c5 {[%emt 0:02:14]} 2. Nf3 {[%emt 0:00:11]} d6 {[%emt 0:00:23]} 3. d4 {[%emt 0:00:09]} cxd4 {[%emt 0:00:14]} 4. Nxd4 {[%emt 0:00:10]} Nf6 {[%emt 0:00:17]} 5. Nc3 {[%emt 0:00:05]} a6 {[%emt 0:00:19]} 6. f3 {[%emt 0:00:12]} e5 {[%emt 0:00:19]} 7. Nb3 {[%emt 0:00:10]} Be6 {[%emt 0:00:15]} 8. Be3 {[%emt 0:00:08]} Nbd7 {[%emt 0:00:11]} 9. Qd2 {[%emt 0:00:08]} b5 {[%emt 0:00:23]} 10. a4 {[%emt 0:00:08]} b4 {[%emt 0:00:13] B90: Sicilian Najdorf: Unusual White 6th moves, 6 Be3 Ng4 and 6 Be3 e5.} 11. Nd5 {[%emt 0:00:07]} Bxd5 {[%emt 0:00:07]} 12. exd5 {[%emt 0:00:06]} Nb6 {[%emt 0:00:08] The position is equal.} 13. Bxb6 {[%emt 0:00:07]} Qxb6 {[%emt 0:00:07]} 14. O-O-O {[%emt 0:00:18]} g6 {[%emt 0:00:26]} 15. Kb1 {[%emt 0:07:09]} (15. a5 $5 {[%cal Ra5b6]} Qb7 16. g4 $11) 15... Bg7 {[%emt 0:00:24]} 16. g4 {[%emt 0:07:47]} O-O {[%emt 0:00:45]} 17. h4 {[%emt 0:00:54]} e4 {[%emt 0:03:35]} (17... Rfe8 $11) 18. a5 {[%emt 0:06:10]} (18. g5 $14 Nh5 19. fxe4 (19. a5 Qa7 $11)) 18... Qc7 $11 {[%emt 0:14:20]} 19. g5 {[%emt 0:05:37] [#]} (19. Qxb4 exf3 20. g5 Rab8 $15) 19... Nh5 $146 {[%emt 0:00:27]} (19... Nd7 $11) ({Predecessor:} 19... Nd7 20. fxe4 Nc5 21. Qe3 Na4 22. Rd4 Bxd4 23. Nxd4 Qxa5 24. Nc6 Qb6 25. Qf4 Nc3+ {½-½ (57) Domanov,D (2392)-Martinez,J (2254) LSS email 2010}) 20. fxe4 {[%emt 0:06:06]} (20. Rh3 $14) 20... Ng3 {[%emt 0:02:49][%csl LRe4,LRh1]} 21. Rg1 {[%emt 0:03:57][%cal Bh1g1,Bg1g3,Bg3f3][%mdl 32]} Nxe4 {[%emt 0:06:23]} 22. Qxb4 {[%emt 0:01:14]} Nc5 {[%emt 0:01:44]} 23. Qc4 {[%emt 0:31:06]} (23. Qa3 $11 {keeps the balance.} Nxb3 24. cxb3 (24. Qxb3 $2 Rfb8 $19)) 23... Rab8 $1 $17 {[%emt 0:06:12] Hoping for ...Rfe8.} 24. h5 {[%emt 0:04:52]} Rfc8 {[%emt 0:02:25]} 25. hxg6 {[%emt 0:00:21]} (25. h6 $17 {was forced.} Be5 26. Re1) 25... hxg6 $19 {[%emt 0:00:16]} 26. Rg3 {[%emt 0:04:20]} Qa7 {[%emt 0:32:04]} ({Better is} 26... Re8 $19 {White must now prevent ...Re4.} 27. Bg2 Qd8) 27. Qg4 {[%emt 0:04:58] [#]} (27. Qh4 $17) 27... Re8 $1 {[%emt 0:03:07] ...Re4 is the strong threat.} 28. Rf3 {[%emt 0:05:06]} Re4 {[%emt 0:03:20] Prevents Qf4.} 29. Qg3 {[%emt 0:03:34]} Reb4 {[%emt 0:03:14]} (29... Na4 $17 30. Rf4 (30. Qxd6 $2 Nxb2 31. Rc1 Na4 $19) 30... Nxb2) 30. Qxd6 $11 {[%emt 0:02:59]} Nxb3 {[%emt 0:01:00]} (30... Ne4 {feels hotter.} 31. Qh2 Nxg5 32. Rf2 Ne4) 31. cxb3 {[%emt 0:00:18] Chess con chili.} Rxb3 {[%emt 0:01:49]} 32. Rxb3 {[%emt 0:00:11]} (32. Qxa6 Rxb2+ 33. Kc1 Rb1+ 34. Kd2 R8b2+ 35. Ke1 {[#]} Bc3+ $1 {[%mdl 512]} 36. Rxc3 Qf2#) 32... Rxb3 {[%emt 0:00:01]} 33. Rd2 {[%emt 0:04:12]} (33. Bxa6 Rxb2+ 34. Ka1 Rb5+) 33... Qe3 {[%emt 0:03:04][%csl LRd2,LRg5]} 34. Rc2 {[%emt 0:01:01][%mdl 8192]} (34. Qd8+ Bf8 35. Rc2 Qe1+ 36. Ka2 Rb4 $17) (34. Re2 $11 Rxb2+ 35. Rxb2 Qe1+ 36. Ka2 Qxa5+ 37. Qa3 Qxd5+ 38. Rb3 (38. Qb3 Qa5+ 39. Qa3 Qd5+ 40. Rb3 Qd2+ 41. Rb2 Qd5+ $11) 38... Qd2+ 39. Rb2 Bxb2 40. Qxb2 Qd5+ 41. Qb3 Qd2+ 42. Qb2 Qd5+ 43. Qb3 Qd2+ 44. Qb2) 34... Be5 $2 {[%emt 0:03:26]} (34... Qxg5 35. Bxa6 Qf5 36. Qd8+ Kh7 37. Qh4+ Kg8 38. Qd8+ Kh7 39. Qh4+ Kg8 40. Qd8+ $11) (34... Qe4 35. Qb6 Rxb6 36. axb6 Qe1+ 37. Ka2 Qxf1) 35. Qxa6 $2 {[%emt 0:00:54]} (35. Qe7 Qe4 36. Bd3 Rxb2+ 37. Rxb2 Qxd3+ 38. Ka2 Qxd5+ 39. Kb1) 35... Qe1+ $2 {[%emt 0:02:21]} (35... Qe4 $19 36. Bd3 Rxd3) 36. Ka2 {[%emt 0:00:06]} Qb4 {[%emt 0:00:13]} (36... Rb4 $1 $11 37. Qc6 Rb8) 37. Qe2 $16 {[%emt 0:00:55] Black is now going downhill.} Qa4+ {[%emt 0:04:00]} (37... Bxb2 $16 {was necessary.} 38. Rxb2 Rxb2+ 39. Qxb2 Qxa5+ 40. Kb1 Qe1+ 41. Qc1 Qe4+ 42. Kb2 Qb4+ 43. Kc2 Qc5+ 44. Kb1 Qb4+ 45. Kc2 (45. Qb2 Qe4+ 46. Qc2 Qb4+ 47. Ka2 Qa5+ 48. Kb3 Qxd5+ 49. Bc4 Qxg5 $14) 45... Qc5+ 46. Kd2 Qxd5+ 47. Ke2 Qe5+ 48. Kf3 Kg7) 38. Kb1 $18 {[%emt 0:00:06]} Bd4 $2 {[%emt 0:03:37]} (38... Qd4 {keeps fighting.} 39. a6 (39. Rc8+ Kg7 $11) 39... Re3) 39. Rc4 {[%emt 0:00:46]} Rb4 {[%emt 0:01:07]} 40. Rxb4 {[%emt 0:00:01]} Qxb4 {[%emt 0:00:01][%mdl 4096] Endgame KQB-KQB} 41. a6 {[%emt 0:00:28]} Kg7 {[%emt 0:00:06]} 42. Qb5 {[%emt 0:01:23] Inhibits f6.} Qe1+ {[%emt 0:00:49]} (42... Qe7 {might work better.} 43. Qc4 Qe1+ 44. Kc2 Qe4+ 45. Bd3 Qg2+ 46. Be2 Qe4+ 47. Kb3 Qe5) 43. Ka2 {[%emt 0:00:06]} Qe5 {[%emt 0:00:24]} 44. Qb7 {[%emt 0:01:03] Strongly threatening Bc4.} Qe1 {[%emt 0:00:55]} (44... Bc5 $142 45. Bc4 (45. a7 Bxa7 46. Qxa7 Qxd5+ 47. b3 Qd2+ 48. Ka3 Qc1+ 49. Ka2 Qd2+ 50. Kb1 Qd1+ 51. Kb2 Qd2+ 52. Kb1 Qd1+ 53. Kb2 Qd2+ 54. Kb1 $11) 45... Qd4) 45. Bc4 {[%emt 0:00:20]} Qc1 {[%emt 0:01:03] Prevents d6.} 46. Qb4 {[%emt 0:00:54] Threatens to win with d6.} Qxg5 {[%emt 0:00:53]} 47. d6 {[%emt 0:00:08][%cal Bd5d6,Bd6d7][%mdl 32]} Qe5 {[%emt 0:00:56]} (47... Qd8 $142 48. Qb7 Qxd6) 48. d7 {[%emt 0:00:19]} Qc7 {[%emt 0:00:20] Inhibits d8Q.} 49. Qb5 {[%emt 0:00:30]} Bc5 {[%emt 0:00:32]} 50. Kb3 {[%emt 0:00:36]} (50. d8=Q $142 Qxd8 51. Qxc5) 50... Bd4 {[%emt 0:01:13]} 51. Ka4 {[%emt 0:00:53] And now Qd5 would win.} f5 {[%emt 0:00:49]} 52. Qd5 {[%emt 0:00:24]} Bf6 {[%emt 0:00:25]} 53. Qf7+ {[%emt 0:00:31]} Kh6 {[%emt 0:00:05]} 54. Qxf6 {[%emt 0:00:04] Qh4+ would kill now.} Qxc4+ {[%emt 0:00:11] KQ-KQ} 55. b4 {[%emt 0:00:01]} Qc2+ {[%emt 0:00:29]} 56. Ka5 {[%emt 0:00:24]} Qc7+ {[%emt 0:00:31]} 57. Qb6 {[%emt 0:00:01]} Qxd7 {[%emt 0:00:25]} 58. a7 {[%emt 0:01:23]} Qd5+ {[%emt 0:00:18]} 59. Ka6 {[%emt 0:00:19]} f4 {[%emt 0:00:33]} 60. Qc5 {[%emt 0:00:46]} (60. Qf6 $142 Qa2+ 61. Kb6 Qf2+ 62. Kb7 Qe3 63. Qh8+ (63. a8=B Qe4+ 64. Kb8 Qxb4+ 65. Kc7 Qa5+ 66. Kb7 Qb5+ 67. Kc8 Qe8+ 68. Kb7 Qb5+ 69. Kc8 Qe8+ 70. Kb7 Qb5+ $11) 63... Kg5 64. a8=Q (64. a8=B f3 $11) 64... Qe7+ 65. Ka6) 60... Qe4 {[%emt 0:00:31]} 61. Qf8+ {[%emt 0:00:15] Weighted Error Value: White=0.36/Black=0.93} 1-0

[Event "ITT 1st Parada Jamundi 2022"]
[Site "Jamundi Valle"]
[Date "2022.12.09"]
[Round "7.11"]
[White "Mateus, Alejandro"]
[Black "Lopez Rayo, Isabella"]
[Result "1-0"]
[ECO "B76"]
[WhiteElo "2308"]
[BlackElo "1898"]
[Annotator "TA"]
[PlyCount "71"]
[EventDate "2022.12.05"]
[EventType "swiss"]
[EventCountry "COL"]
[SourceTitle "playchess.com"]
[Source "ChessBase"]
[SourceQuality "1"]
[TimeControl "5400+30"]

{[%evp 20,71,0,7,67,62,65,67,66,70,59,78,131,89,152,145,142,146,169,184,293,291,362,220,383,226,340,207,282,299,286,286,271,216,458,444,618,593,770,717,965,921,974,955,890,942,1453,1407,29980,29981,29994,29995,29995,29996]} 1. e4 {[%emt 0:01:41]} c5 {[%emt 0:02:40]} 2. Nf3 {[%emt 0:00:13]} d6 {[%emt 0:00:06]} 3. d4 {[%emt 0:00:22]} cxd4 {[%emt 0:00:06]} 4. Nxd4 {[%emt 0:00:05]} Nf6 {[%emt 0:00:08]} 5. Nc3 {[%emt 0:00:09]} g6 {[%emt 0:00:14]} 6. Be3 {[%emt 0:00:19]} Bg7 {[%emt 0:00:09]} 7. f3 {[%emt 0:00:07][%cal Bf2f3,Bf3e4][%mdl 32]} O-O {[%emt 0:00:10]} 8. Qd2 {[%emt 0:00:07]} Nc6 {[%emt 0:00:06]} 9. O-O-O {[%emt 0:00:10]} d5 {[%emt 0:00:15]} 10. Kb1 {[%emt 0:01:14]} Nxd4 {[%emt 0:18:03]} 11. e5 {[%emt 0:01:03][%cal Oe5f6]} (11. Qxd4 {[#]} Nxe4 $1 {[%mdl 512]} 12. Qxd5 Nxc3+ 13. bxc3 Qxd5 14. Rxd5 Bxc3 $17) (11. Bxd4 {simplifies} dxe4 12. fxe4 Be6 13. Be2) 11... Ne4 {[%emt 0:15:40] B76: Sicilian Dragon: Yugoslav Attack, 9 g4 and 9 0-0-0.} 12. fxe4 $14 {[%emt 0:08:13]} (12. Qxd4 Nxc3+ 13. Qxc3 Bf5 $11) 12... Nc6 {[%emt 0:01:06] [#]} 13. Nxd5 $146 {[%emt 0:02:54][%cal Bc3d5,Bd5f6,Bf6d7][%mdl 32]} ({Of course not} 13. Qxd5 Qc7 $11) (13. exd5 {simplifies} Nxe5 14. Be2 a6 15. Rhf1) ({Predecessor:} 13. exd5 Nxe5 14. Bh6 Bxh6 15. Qxh6 Bf5 16. h3 Rc8 17. Qe3 Nc4 18. Bxc4 Rxc4 19. g4 {0-1 (30) Brajovic,R (2390)-Brankovic,D (2345) Niska Banja 1996}) 13... Bg4 {[%emt 0:10:48] Inhibits h4. White is slightly better.} 14. Be2 {[%emt 0:01:35]} Bxe2 {[%emt 0:09:00]} 15. Qxe2 {[%emt 0:00:08][%cal Od5f6]} Qa5 {[%emt 0:06:48]} (15... Qb8 $142) 16. Bf4 {[%emt 0:07:09] White is more active.} e6 {[%emt 0:05:34]} (16... Rae8 $142) 17. Bd2 $16 {[%emt 0:06:01]} Qa4 {[%emt 0:16:27]} 18. Nf6+ {[%emt 0:01:21]} Kh8 {[%emt 0:01:08]} 19. Bc3 {[%emt 0:01:14]} b5 {[%emt 0:00:34]} (19... Rfd8 $142 20. h4 h6) 20. b3 $18 {[%emt 0:04:35]} Qa6 {[%emt 0:03:34]} 21. h4 {[%emt 0:03:42] h5 is the strong threat.} h6 $2 {[%emt 0:00:23]} (21... Bxf6 22. exf6 Qb6) 22. h5 {[%emt 0:03:07]} (22. a4 $142) 22... g5 {[%emt 0:00:06]} (22... Bxf6 $142 23. exf6 g5) 23. Nd7 {[%emt 0:07:14] Threatens to win with a4.} Rfe8 {[%emt 0:01:25]} 24. a4 {[%emt 0:04:15]} Qc8 {[%emt 0:01:27]} 25. Qxb5 {[%emt 0:06:28]} ({Don't play} 25. axb5 $6 Nb8 $16) 25... a6 {[%emt 0:01:41]} 26. Qf1 {[%emt 0:05:21]} Nd8 $2 {[%emt 0:01:23]} (26... Nb8 {is a better defense.}) 27. Rh3 {[%emt 0:03:14][%cal Bh1h3,Bh3d3,Bd3c3,Bc3c8][%mdl 32] And now Nb6 would win.} Qc6 {[%emt 0:01:24] Inhibits Nb6.} 28. Nf6 {[%emt 0:01:09]} Re7 {[%emt 0:00:36]} 29. Rhd3 {[%emt 0:04:50]} Nb7 {[%emt 0:00:16]} 30. Bb4 {[%emt 0:00:44]} Rc7 {[%emt 0:00:26]} 31. Rc3 {[%emt 0:00:29]} Qb6 {[%emt 0:00:05]} 32. Nd7 {[%emt 0:06:59]} Rxd7 {[%emt 0:02:20]} 33. Rxd7 {[%emt 0:00:15]} Qxb4 {[%emt 0:00:35]} 34. Qxf7 {[%emt 0:00:40][%csl Gd7][%cal Rf7g7] White mates.} Rg8 {[%emt 0:00:09] [#]} 35. Rc8 $3 {[%emt 0:01:03][%csl Gc8][%cal Rf7g8][%mdl 512]} Qe1+ {[%emt 0:01:02]} 36. Ka2 {[%emt 0:00:06] Black did not feel at home in the position after the opening.   Weighted Error Value: White=0.31/Black=0.77} 1-0

[Event "ITT 1st Parada Jamundi 2022"]
[Site "Jamundi Valle"]
[Date "2022.12.09"]
[Round "7.12"]
[White "Gonzalez Velasco, Leandro"]
[Black "Larino Nieto, David"]
[Result "1/2-1/2"]
[ECO "B07"]
[WhiteElo "1915"]
[BlackElo "2466"]
[Annotator "TA"]
[PlyCount "166"]
[EventDate "2022.12.05"]
[EventType "swiss"]
[EventCountry "COL"]
[SourceTitle "playchess.com"]
[Source "ChessBase"]
[SourceQuality "1"]
[TimeControl "5400+30"]

{[%evp 15,166,30,30,37,48,14,25,19,37,20,28,18,15,26,33,34,34,32,28,25,13,17,80,49,103,95,135,62,162,155,257,270,304,172,171,170,212,100,134,95,197,130,122,114,99,96,105,70,91,83,159,44,44,37,35,35,85,10,10,10,15,12,20,0,48,42,48,52,124,124,124,14,18,18,345,366,348,231,222,183,424,424,416,391,391,376,354,336,554,553,688,681,670,632,1487,1487,1434,712,1444,1361,1480,1466,1451,1425,1082,966,29951,29951,29949,1950,29950,29955,29954,29955,29954,29955,29956,29958,29957,29957,29966,29968,29968,29968,29968,29954,29967,29968,29968,29963,29962,29962,29971,29956,8522,6711,29966,29967,5185,0,0,0,0,0,0,0,0,0,0,0,0,0,0]} 1. e4 {[%emt 0:01:10]} d6 {[%emt 0:06:53]} 2. d4 {[%emt 0:00:35]} Nf6 {[%emt 0:00:03]} 3. Nc3 {[%emt 0:00:19]} e5 {[%emt 0:00:01]} 4. dxe5 {[%emt 0:05:23]} dxe5 {[%emt 0:00:08]} 5. Qxd8+ {[%emt 0:00:39]} Kxd8 {[%emt 0:00:02]} 6. Bd2 {[%emt 0:07:48]} Bd6 {[%emt 0:01:25]} 7. Bc4 {[%emt 0:00:52]} Be6 {[%emt 0:00:23]} 8. Bxe6 {[%emt 0:12:56]} fxe6 {[%emt 0:00:50]} 9. f3 {[%emt 0:00:33] B07: Pirc Defence: Miscellaneous Systems.} Ke7 {[%emt 0:00:10] [#]} 10. Nb5 $146 {[%emt 0:04:02]} ({Predecessor:} 10. Nge2 Nc6 11. O-O-O a6 12. Be3 b5 13. Kb1 Na5 14. b3 c5 15. Rd2 Nc6 16. Rhd1 {½-½ (23) Bass,J (2003)-Gardiner,E (1925) Torquay 2018}) 10... Nc6 {[%emt 0:02:37]} 11. O-O-O {[%emt 0:05:33] White has an edge.} a6 {[%emt 0:05:30]} 12. Nxd6 {[%emt 0:00:39]} cxd6 {[%emt 0:00:06]} 13. Ne2 {[%emt 0:01:11]} b5 {[%emt 0:00:11]} 14. Be3 {[%emt 0:03:54]} Rhc8 {[%emt 0:00:23]} 15. Rd2 {[%emt 0:05:21]} Na5 {[%emt 0:01:12]} 16. b3 {[%emt 0:00:24] Inhibits Nc4.} Rc6 {[%emt 0:00:46]} 17. Rhd1 {[%emt 0:02:28]} Rac8 {[%emt 0:00:30]} 18. Kb2 {[%emt 0:04:41]} b4 {[%emt 0:02:40]} (18... Nb7 $11) 19. Rc1 {[%emt 0:10:16]} d5 {[%emt 0:02:40]} ({Black should try} 19... h6 $14) 20. exd5 $1 $16 {[%emt 0:02:46]} exd5 {[%emt 0:00:09]} 21. Bg5 {[%emt 0:00:27]} (21. f4 $1 $16 {[%cal Rf4e5]}) 21... Ke6 {[%emt 0:00:20]} (21... Rc5 $1 $14) 22. Re1 $1 $18 {[%emt 0:09:57] Nd4+ is the strong threat.} Kd6 {[%emt 0:01:03]} (22... Kf7 $16) 23. Ng3 {[%emt 0:02:57]} h6 {[%emt 0:01:28]} 24. Bxf6 {[%emt 0:05:12]} (24. Nf5+ $142 Kd7 25. Bh4 (25. Bxf6 gxf6 26. f4 Ke6 $16)) 24... gxf6 {[%emt 0:00:33]} 25. Nf5+ {[%emt 0:00:13]} Kd7 {[%emt 0:01:05]} 26. Nxh6 {[%emt 0:00:50]} (26. Rxd5+ $6 Ke6 $16) (26. f4 $1 $18 {[%cal Rf4e5]}) 26... Ke6 {[%emt 0:01:43]} 27. g4 {[%emt 0:00:25][%cal Og4g5]} Nb7 {[%emt 0:00:42]} (27... Rc3 $16 {is a better defense.}) 28. Nf5 {[%emt 0:00:23]} (28. g5 $1 $18) 28... Rc3 $16 {[%emt 0:00:12]} 29. h4 {[%emt 0:02:11]} Nd6 {[%emt 0:00:13] [#]} 30. Nxd6 {[%emt 0:02:08]} Kxd6 {[%emt 0:00:03][%mdl 4096] Endgame KRR-KRR} 31. Rf1 {[%emt 0:00:20]} a5 {[%emt 0:00:21]} 32. h5 {[%emt 0:01:55]} a4 {[%emt 0:00:02]} (32... Rg8 $142) 33. Rff2 {[%emt 0:02:35]} (33. bxa4 $16 Ra8 34. f4) 33... a3+ $14 {[%emt 0:00:07]} 34. Kc1 {[%emt 0:00:16]} d4 {[%emt 0:00:09]} 35. Kd1 {[%emt 0:00:35]} Ke6 {[%emt 0:00:07]} (35... Rg8 $14) 36. Ke1 {[%emt 0:03:58]} (36. Rd3 $16) 36... Kd5 $11 {[%emt 0:00:26]} 37. Kf1 {[%emt 0:00:28]} Rg8 {[%emt 0:00:15]} 38. Rd3 {[%emt 0:00:39] And now Rxc3 would win.} Rc7 {[%emt 0:00:07]} 39. Rg2 {[%emt 0:00:41]} Rcg7 {[%emt 0:00:14]} (39... Rgc8 $11) 40. Rdd2 $14 {[%emt 0:00:36]} Rh7 {[%emt 0:00:09]} 41. Rh2 {[%emt 0:00:35]} f5 {[%emt 0:00:10]} ({Black should play} 41... Rc7 $14) 42. Rdg2 $16 {[%emt 0:01:00] Strongly threatening g5.} (42. gxf5 $6 Rgh8 $11) 42... fxg4 {[%emt 0:00:05]} 43. Rxg4 {[%emt 0:00:21]} ({White has to play} 43. fxg4 $16 {aiming for g5.} Rf7+ 44. Kg1) 43... Rgh8 {[%emt 0:00:35]} 44. Rg5 {[%emt 0:00:20] Threatens to win with Re2.} Ke6 $2 {[%emt 0:00:21][%mdl 8192]} (44... Rf7 $11) 45. Re2 $18 {[%emt 0:00:09]} Rc7 {[%emt 0:00:45]} 46. Rgxe5+ {[%emt 0:00:25]} Kf6 {[%emt 0:00:04]} 47. Rd5 {[%emt 0:01:25]} Rg7 $2 {[%emt 0:00:13]} (47... Rhc8 {was worth a try.} 48. Rxd4 Rxc2 49. Rxb4 Rxe2 50. Kxe2 Rc2+ 51. Ke3 Rxa2) 48. Rxd4 {[%emt 0:00:23]} Rxh5 {[%emt 0:00:02]} 49. Rf4+ {[%emt 0:00:20]} Rf5 {[%emt 0:00:05]} 50. Rxf5+ {[%emt 0:00:23]} ({Much less strong is} 50. Rxb4 Rxf3+ 51. Rf2 Rxf2+ 52. Kxf2 Rh7 $18) 50... Kxf5 {[%emt 0:00:02] KR-KR} 51. Re4 {[%emt 0:00:07]} Rh7 $2 {[%emt 0:00:04]} (51... Rc7 {was called for.} 52. Rc4 (52. Rxb4 Rxc2 53. Ra4 Rxa2 $11) 52... Rb7) 52. Rxb4 {[%emt 0:00:54]} Rh1+ {[%emt 0:00:02]} 53. Ke2 {[%emt 0:00:12]} Ra1 {[%emt 0:00:03]} 54. Ra4 {[%emt 0:00:18]} Rxa2 {[%emt 0:00:01]} 55. Kd3 {[%emt 0:00:16]} Ra1 {[%emt 0:00:02]} 56. Kc3 {[%emt 0:00:19]} (56. Kc4 $142 Ke5 57. b4) 56... Ke5 {[%emt 0:00:01]} 57. Kb4 {[%emt 0:01:51]} a2 {[%emt 0:00:58]} 58. Kc3 {[%emt 0:00:30]} Kd5 {[%emt 0:00:04]} 59. Kb2 {[%emt 0:00:40]} Rf1 {[%emt 0:00:06]} 60. Rxa2 {[%emt 0:00:39]} Rxf3 {[%emt 0:00:03]} 61. Ra4 {[%emt 0:00:31]} Kc5 {[%emt 0:00:16]} 62. Rh4 {[%emt 0:00:32]} (62. Rg4 $142 Rf2 63. Rc4+ Kb5 64. Ka3 Rg2 65. Rc8 Rg3 66. c4+ Kb6 67. Ka4) 62... Rf5 {[%emt 0:00:14]} 63. b4+ {[%emt 0:00:19]} Kb5 {[%emt 0:00:05]} 64. Kb3 {[%emt 0:00:09]} Rf3+ {[%emt 0:00:07]} 65. c3 {[%emt 0:00:05]} Rg3 {[%emt 0:00:06]} 66. Rh5+ {[%emt 0:00:39]} Kb6 {[%emt 0:00:01]} 67. Rd5 {[%emt 0:00:39]} Rh3 {[%emt 0:00:05]} 68. Kc4 {[%emt 0:00:31]} Rh4+ {[%emt 0:00:04]} 69. Rd4 {[%emt 0:00:05]} Rh6 {[%emt 0:00:08]} 70. Rg4 {[%emt 0:00:50]} Rf6 {[%emt 0:00:13]} 71. b5 {[%emt 0:01:02]} Ka5 {[%emt 0:00:05]} 72. Rg5 {[%emt 0:00:27]} Rf8 {[%emt 0:01:32] [#]} 73. Rd5 $1 {[%emt 0:01:07]} Rh8 {[%emt 0:01:01]} 74. Kc5 {[%emt 0:00:37]} Rc8+ {[%emt 0:00:09]} 75. Kd4 {[%emt 0:00:10]} Rh8 {[%emt 0:00:02]} 76. c4 {[%emt 0:00:52]} Kb4 {[%emt 0:00:02]} 77. b6 $2 {[%emt 0:00:15]} (77. Rd7 $18 {Threatening mate with b6.} Rh6 78. Kd5 Rh5+ 79. Kc6 Rc5+ 80. Kd6) 77... Rh4+ $11 {[%emt 0:00:05] The position is equal.} 78. Ke5 {[%emt 0:00:28] b7 would kill now.} (78. Kd3 $5 Rh3+ $8 79. Ke4 Kxc4 80. Re5 $11 (80. Rd4+ Kc5 $11)) 78... Kxc4 {[%emt 0:00:03]} 79. Rd1 {[%emt 0:00:48]} (79. b7 $5 Rh5+ $8 80. Kf4 $11) 79... Kc5 {[%emt 0:00:20]} 80. Rb1 {[%emt 0:00:29] Intending b7 and mate.} (80. b7 $5 Rh8 $8 81. Rc1+ Kb6 82. Rg1 $11 (82. Rb1+ Ka7 $11)) 80... Rh8 {[%emt 0:00:18]} 81. b7 {[%emt 0:00:30]} Rb8 {[%emt 0:00:09]} 82. Ke6 $1 {[%emt 0:00:28] White wants to mate with Kd7.} Kc6 {[%emt 0:00:07]} 83. Kf5 {[%emt 0:01:04]} Kd5 {Black escapes into a draw.   Weighted Error Value: White=0.27 (precise) /Black=0.50} 1/2-1/2